bitfinex-derivatives/quotes_BNBF0:USTF0_20251010
["timestamp","ask_amount","ask_price","bid_price","bid_amount"]
[1760111810469,1.1891054,1218.9,1216.0,0.53034801]
[1760111810667,1.1891054,1218.9,1215.5,0.61047909]
[1760111810864,1.1891054,1219.0,1215.6,0.53051097]
[1760111811068,1.1891054,1219.0,1215.7,0.53051097]
[1760111811265,1.1891054,1218.9,1215.8,0.53051097]
[1760111811469,1.1891054,1218.9,1215.1,0.80516912]
[1760111811470,1.1891054,1218.9,1215.9,0.53051097]
[1760111811764,1.1891054,1218.9,1216.0,0.53051097]
[1760111811969,1.1891054,1218.9,1215.4,0.61047909]
[1760111812167,1.1891054,1218.9,1215.5,0.53065009]
[1760111812370,1.1891054,1218.8,1215.6,0.53065009]
[1760111812567,1.1891054,1218.8,1215.7,0.53065009]
[1760111812765,1.1891054,1218.8,1215.8,0.53065009]
[1760111812970,1.1891054,1218.8,1215.9,0.53065009]
[1760111813166,1.1891054,1218.7,1216.0,0.53065009]
[1760111813370,1.1891054,1218.7,1215.5,0.61047909]
[1760111813668,1.1891054,1218.7,1215.6,0.53073629]
[1760111813968,1.1891054,1218.7,1215.7,0.53073629]
[1760111814164,1.1891054,1218.7,1215.8,0.53073629]
[1760111814370,1.1891054,1218.8,1215.9,0.53073629]
[1760111814570,1.1891054,1218.6,1215.4,0.61047909]
[1760111814771,1.1891054,1218.6,1215.5,0.53082262]
[1760111814971,1.1891054,1218.9,1215.6,0.53082262]
[1760111815271,1.1891054,1218.9,1215.7,0.53082262]
[1760111815466,1.1891054,1218.9,1215.8,0.53082262]
[1760111815666,1.1891054,1219.0,1215.9,0.53082262]
[1760111815870,1.1891054,1218.9,1216.0,0.53082262]
[1760111816164,1.1891054,1218.9,1216.1,0.53082262]
[1760111816371,1.1891054,1218.8,1215.7,0.61047909]
[1760111816673,1.1891054,1218.8,1215.8,0.53076502]
[1760111816972,1.1891054,1219.1,1215.9,0.53076502]
[1760111817172,1.1891054,1219.1,1216.0,0.53083937]
[1760111817371,1.1891054,1218.9,1215.4,0.61047909]
[1760111817566,1.1891054,1218.9,1215.5,0.53088142]
[1760111817768,1.1891054,1218.9,1215.6,0.53088142]
[1760111818068,1.1891054,1218.9,1215.7,0.53088142]
[1760111818272,1.1891054,1218.9,1215.8,0.53088142]
[1760111818475,1.1891054,1218.9,1213.5,1.9784871]
[1760111818476,1.1891054,1219.0,1215.9,0.53088142]
[1760111818772,1.1891054,1218.8,1216.0,0.53088142]
[1760111818972,1.1891054,1218.9,1216.1,0.53088142]
[1760111819173,1.1891054,1218.9,1215.8,0.61047909]
[1760111819174,1.1891054,1218.8,1216.2,0.53088142]
[1760111819469,1.1891054,1218.8,1215.8,0.61047909]
[1760111819672,1.1891054,1218.8,1215.9,0.5308508]
[1760111819873,1.1891054,1218.8,1216.0,0.5308508]
[1760111820073,1.1891054,1218.8,1216.1,0.5308508]
[1760111820373,1.1891054,1219.0,1216.2,0.5308508]
[1760111820573,1.1891054,1219.5,1216.3,0.5308508]
[1760111820768,1.1891054,1219.6,1216.4,0.5308508]
[1760111820975,1.1891054,1219.8,1216.5,0.5308508]
[1760111821169,1.1891054,1219.9,1216.6,0.5308508]
[1760111821470,1.1891054,1219.9,1216.7,0.5308508]
[1760111821770,1.1891054,1219.9,1216.8,0.5308508]
[1760111821973,1.1891054,1219.9,1216.9,0.5308508]
[1760111822170,1.1891054,1219.9,1217.0,0.5308508]
[1760111822375,1.1891054,1219.9,1216.4,0.61047909]
[1760111822671,1.1891054,1219.8,1216.5,0.53167664]
[1760111822869,1.1891054,1219.8,1216.4,0.61047909]
[1760111822870,1.1891054,1219.8,1216.6,0.53167664]
[1760111823070,1.1891054,1219.6,1216.7,0.53167664]
[1760111823269,1.1891054,1219.6,1216.3,0.61047909]
[1760111823270,1.1891054,1219.5,1216.8,0.53167664]
[1760111823474,1.1891054,1219.7,1216.9,0.53161877]
[1760111823675,1.1891054,1219.7,1216.4,0.61047909]
[1760111823876,1.1891054,1219.7,1216.5,0.53161884]
[1760111824076,1.1891054,1219.7,1216.6,0.53161884]
[1760111824273,1.1891054,1219.7,1216.7,0.53161884]
[1760111824472,1.1891054,1219.6,1216.8,0.53161884]
[1760111824673,1.1891054,1219.4,1216.3,0.61047909]
[1760111824977,1.1891054,1219.3,1216.4,0.53157979]
[1760111825177,1.1891054,1219.3,1216.5,0.53157979]
[1760111825373,1.1891054,1219.3,1216.6,0.53157979]
[1760111825574,1.1891054,1219.3,1216.7,0.53157979]
[1760111825878,1.1891054,1219.3,1216.2,0.61047909]
[1760111826074,1.1891054,1219.4,1216.3,0.5315023]
[1760111826377,1.1891054,1219.4,1216.4,0.5315023]
[1760111826674,1.1891054,1219.3,1216.5,0.5315023]
[1760111826979,1.1891054,1219.2,1216.0,0.61047909]
[1760111827279,1.1891054,1219.2,1216.1,0.53150769]
[1760111827578,1.1891054,1219.2,1216.2,0.53150769]
[1760111827778,1.1891054,1219.1,1216.3,0.53150769]
[1760111827979,1.1891054,1219.1,1216.4,0.53150769]
[1760111828278,1.1891054,1219.0,1215.9,0.61047909]
[1760111828476,1.1891054,1219.1,1216.0,0.53160127]
[1760111828675,1.1891054,1219.0,1216.1,0.53160127]
[1760111828879,1.1891054,1219.0,1216.2,0.53160127]
[1760111829075,1.1891054,1219.0,1215.7,0.61047909]
[1760111829276,1.1891054,1219.2,1215.8,0.53167178]
[1760111829479,1.1891054,1219.2,1215.9,0.53167178]
[1760111829680,1.1891054,1219.1,1216.0,0.53167178]
[1760111829876,1.1891054,1219.2,1216.1,0.53167178]
[1760111830075,1.1891054,1219.2,1216.2,0.53167178]
[1760111830278,1.1891054,1219.2,1215.6,0.61047909]
[1760111830582,1.1891054,1219.2,1215.7,0.53168949]
[1760111830781,1.1891054,1219.2,1215.8,0.53168949]
[1760111831078,1.1891054,1219.2,1215.9,0.53168949]
[1760111831281,1.1891054,1219.2,1216.0,0.53168949]
[1760111831479,1.1891054,1218.6,1215.6,0.61047909]
[1760111831682,1.1891054,1218.3,1214.9,0.61047909]
[1760111831979,1.1891054,1218.5,1215.0,1.1423906]
[1760111832282,1.1891054,1218.1,1214.5,0.61047909]
[1760111832579,1.1891054,1218.0,1214.6,0.5304153]
[1760111832778,1.1891054,1217.9,1214.7,0.5304153]
[1760111833079,1.1891054,1217.9,1214.8,0.5304153]
[1760111833279,1.1891054,1217.6,1214.3,0.61047909]
[1760111833482,1.1891054,1217.7,1214.4,0.53021279]
[1760111833689,1.1891054,1217.4,1214.5,0.53021279]
[1760111833882,1.1891054,1218.3,1214.6,1.34361688]
[1760111834178,1.1891054,1218.4,1214.7,1.14069188]
[1760111834479,1.1891054,1218.4,1214.8,0.53021279]
[1760111834781,1.1891054,1218.5,1214.9,0.53021279]
[1760111834983,1.1891054,1218.4,1215.0,0.53021279]
[1760111835280,1.1891054,1218.3,1215.1,0.53021279]
[1760111835584,1.1891054,1217.9,1215.2,0.53021279]
[1760111835784,1.1891054,1217.9,1214.8,0.61047909]
[1760111835983,1.1891054,1218.0,1214.9,0.52993282]
[1760111836184,1.1891054,1218.0,1215.0,0.52993282]
[1760111836384,1.1891054,1218.1,1215.1,0.52993282]
[1760111836685,1.1891054,1218.2,1215.2,0.52993282]
[1760111836881,1.1891054,1218.3,1215.3,0.52993282]
[1760111837086,1.1891054,1218.3,1215.4,0.52993282]
[1760111837289,1.1891054,1218.3,1214.9,0.61047909]
[1760111837488,1.1891054,1218.3,1215.0,0.52977919]
[1760111837681,1.1891054,1218.3,1215.1,0.52977919]
[1760111837883,1.1891054,1218.4,1215.2,0.52977919]
[1760111838082,1.1891054,1218.4,1215.3,0.52977919]
[1760111838286,1.1891054,1218.4,1215.4,0.52977919]
[1760111838487,1.1891054,1218.4,1214.9,0.61047909]
[1760111838683,1.1891054,1218.4,1215.0,0.52975606]
[1760111838987,1.1891054,1218.6,1215.1,0.52975606]
[1760111839184,1.1891054,1218.6,1215.2,0.52975606]
[1760111839383,1.1891054,1218.6,1214.8,0.61047909]
[1760111839384,1.1891054,1218.4,1215.3,0.52975606]
[1760111839687,1.1891054,1218.4,1215.4,0.52975606]
[1760111839886,1.1891054,1218.5,1214.8,0.61047909]
[1760111840083,1.1891054,1218.5,1214.9,0.52974674]
[1760111840289,1.1891054,1218.5,1215.0,0.52974674]
[1760111840487,1.1891054,1218.5,1215.1,0.52974674]
[1760111840689,1.1891054,1218.3,1215.2,0.52974674]
[1760111840984,1.1891054,1218.3,1215.3,0.52974674]
[1760111841186,1.1891054,1218.3,1215.4,0.52974674]
[1760111841385,1.1891054,1218.3,1214.8,0.61047909]
[1760111841585,1.1891054,1218.3,1214.9,0.52968239]
[1760111841786,1.1891054,1218.3,1215.0,0.52968239]
[1760111841990,1.1891054,1218.3,1215.1,0.52968239]
[1760111842187,1.1891054,1218.3,1215.2,0.52968239]
[1760111842387,1.1891054,1218.3,1215.3,0.52968239]
[1760111842586,1.1891054,1218.3,1214.8,0.61047909]
[1760111842791,1.1891054,1218.3,1214.9,0.52964604]
[1760111842992,1.1891054,1218.3,1215.0,0.52964604]
[1760111843188,1.1891054,1218.3,1215.1,0.52964604]
[1760111843391,1.1891054,1218.3,1215.2,0.52964604]
[1760111843586,1.1891054,1218.3,1215.3,0.52964604]
[1760111843788,1.1891054,1218.6,1215.4,0.52960523]
[1760111843988,1.1891054,1218.6,1214.8,0.61047909]
[1760111844189,1.1891054,1218.6,1214.9,0.52958752]
[1760111844488,1.1891054,1217.8,1215.0,0.52958752]
[1760111844690,1.1891054,1217.8,1215.1,0.5296466]
[1760111844890,1.1891054,1217.8,1214.7,0.61047909]
[1760111845193,3.9072739,1222.0,1214.8,0.52963719]
[1760111845194,1.1891054,1218.1,1214.8,0.52963719]
[1760111845390,1.1891054,1218.3,1214.9,0.52963719]
[1760111845589,1.9536369,1219.2,1213.9,1.19869]
[1760111845590,1.1891054,1218.4,1215.0,0.52963719]
[1760111845795,1.1891054,1218.4,1214.6,0.61047909]
[1760111845796,1.1891054,1218.4,1215.1,0.52963719]
[1760111845992,1.1891054,1218.6,1215.2,0.52963719]
[1760111846292,1.1891054,1218.6,1215.3,0.52963719]
[1760111846496,1.1891054,1218.6,1214.6,0.61047909]
[1760111846692,1.1891054,1218.6,1214.7,1.34261961]
[1760111846893,1.1891054,1218.6,1214.8,0.52945366]
[1760111847092,1.1891054,1218.6,1214.9,0.52945366]
[1760111847293,1.1891054,1218.6,1215.0,0.52945366]
[1760111847591,1.1891054,1218.6,1215.1,0.52945366]
[1760111847896,1.1891054,1218.6,1215.2,0.52945366]
[1760111848093,1.1891054,1218.6,1215.3,0.52945366]
[1760111848293,1.1891054,1218.4,1214.6,0.61047909]
[1760111848492,1.1891054,1218.4,1214.7,0.52944889]
[1760111848793,1.1891054,1217.9,1214.8,1.13992798]
[1760111848995,1.1891054,1217.9,1214.9,0.52944889]
[1760111849193,1.1891054,1217.9,1215.0,0.52944889]
[1760111849394,1.1891054,1217.9,1214.7,0.61047909]
[1760111849395,1.1891054,1217.9,1215.1,0.52944889]
[1760111849598,1.1891054,1217.9,1214.7,0.61047909]
[1760111849797,1.1891054,1217.9,1214.8,0.52946084]
[1760111850093,1.1891054,1217.8,1214.9,0.52946084]
[1760111850297,1.1891054,1217.8,1215.0,0.52946084]
[1760111850496,1.1891054,1217.8,1214.6,0.61047909]
[1760111850696,1.1891054,1217.8,1214.7,1.13992005]
[1760111850896,1.1891054,1217.8,1214.8,0.52944096]
[1760111851096,1.1891054,1217.8,1214.9,0.52944096]
[1760111851295,1.1891054,1217.8,1215.0,0.52944096]
[1760111851497,1.1891054,1217.8,1214.6,0.61047909]
[1760111851696,0.14310417,1217.2,1214.7,0.52928834]
[1760111851997,0.14310417,1217.2,1214.8,0.52928834]
[1760111852207,0.14310417,1217.2,1214.9,0.52928834]
[1760111852397,0.14310417,1217.2,1215.0,0.52928834]
[1760111852594,0.14310417,1217.2,1215.1,0.52928834]
[1760111852798,0.14310417,1217.2,1214.5,0.61047909]
[1760111853097,0.14310417,1217.2,1214.6,0.52924178]
[1760111853298,0.14310417,1217.2,1214.7,0.52924178]
[1760111853498,0.14310417,1217.2,1214.8,0.52924178]
[1760111853697,0.14310417,1217.2,1214.9,0.52924178]
[1760111853900,0.14310417,1217.2,1215.0,0.52924178]
[1760111854094,0.14310417,1217.2,1215.1,0.52924178]
[1760111854301,0.14310417,1217.2,1214.4,0.61047909]
[1760111854497,0.14310417,1217.2,1214.5,0.73191586]
[1760111854702,0.14310417,1217.2,1214.6,0.52925383]
[1760111854901,0.14310417,1217.2,1214.7,0.52925383]
[1760111855201,0.14310417,1217.2,1214.8,0.52925383]
[1760111855497,0.14310417,1217.2,1214.9,0.52925383]
[1760111855698,0.14310417,1217.2,1215.0,0.52925383]
[1760111855899,0.14310417,1217.2,1215.1,0.52925383]
[1760111856098,0.14310417,1217.2,1214.3,0.61047909]
[1760111856398,0.14310417,1217.2,1214.4,0.52935799]
[1760111856601,0.14310417,1217.2,1214.5,0.52935799]
[1760111856902,0.14310417,1217.2,1214.6,0.52935799]
[1760111857101,0.14310417,1217.2,1214.7,0.52935799]
[1760111857302,0.14310417,1217.2,1214.8,0.52935799]
[1760111857498,0.14310417,1217.2,1214.1,0.61047909]
[1760111857799,0.14310417,1217.2,1214.2,0.52914764]
[1760111858101,0.14310417,1217.2,1214.3,0.52914764]
[1760111858298,0.14310417,1217.2,1214.4,0.52914764]
[1760111858497,0.14310417,1217.2,1214.5,0.52914764]
[1760111858701,0.14310417,1217.2,1214.6,0.52914764]
[1760111858902,0.14310417,1217.2,1214.7,0.52914764]
[1760111859197,0.14310417,1217.2,1214.8,0.52914764]
[1760111859401,0.14310417,1217.2,1214.9,0.52914764]
[1760111859602,0.14310417,1217.2,1214.3,0.61047909]
[1760111859902,0.14310417,1217.2,1214.4,0.52898552]
[1760111860102,0.14310417,1217.2,1214.5,0.52898552]
[1760111860396,0.14310417,1217.2,1214.3,0.61047909]
[1760111860397,0.14310417,1217.2,1214.6,0.52898552]
[1760111860602,0.14310417,1217.2,1214.7,0.52898552]
[1760111860902,0.14310417,1217.2,1214.8,0.52898552]
[1760111861099,0.14310417,1217.2,1214.9,0.52898552]
[1760111861302,0.14310417,1217.2,1215.0,0.52898552]
[1760111861503,0.14310417,1217.2,1214.7,0.61047909]
[1760111861700,0.14310417,1217.2,1214.8,0.52879322]
[1760111861900,0.14310417,1217.2,1214.9,0.52879322]
[1760111862105,0.14310417,1217.2,1215.0,0.52879322]
[1760111862305,0.14310417,1217.2,1215.1,0.52879322]
[1760111862501,0.14310417,1217.2,1214.7,0.61047909]
[1760111862703,0.14310417,1217.2,1214.8,1.13919761]
[1760111863002,0.14310417,1217.2,1214.9,0.52871852]
[1760111863307,0.14310417,1217.2,1215.0,0.52871852]
[1760111863602,0.14310417,1217.2,1215.1,0.52871852]
[1760111863804,0.14310417,1217.2,1215.2,0.52871852]
[1760111864003,0.14310417,1217.2,1214.8,0.61047909]
[1760111864207,0.14310417,1217.2,1214.9,0.52867073]
[1760111864404,0.14310417,1217.2,1215.0,0.52867073]
[1760111864606,0.14310417,1217.2,1215.1,0.52867073]
[1760111864803,0.14310417,1217.2,1215.2,0.52867073]
[1760111865005,0.14310417,1217.2,1214.7,0.61047909]
[1760111865309,0.14310417,1217.2,1214.8,0.52870799]
[1760111865510,0.14310417,1217.2,1214.9,0.52870799]
[1760111865709,0.14310417,1217.2,1215.0,0.52870799]
[1760111865910,0.14310417,1217.2,1215.1,0.52870799]
[1760111866108,0.14310417,1217.2,1215.2,0.52870799]
[1760111866311,0.14310417,1217.2,1214.7,0.61047909]
[1760111866510,0.14310417,1217.2,1214.8,0.5290919]
[1760111866709,0.14310417,1217.2,1214.9,0.5290919]
[1760111866910,0.14310417,1217.2,1215.0,0.5290919]
[1760111867112,0.14310417,1217.2,1215.1,0.5290919]
[1760111867411,0.14310417,1217.2,1215.2,0.5290919]
[1760111867609,0.14310417,1217.2,1214.7,0.61047909]
[1760111867813,0.14310417,1217.2,1214.8,0.52931946]
[1760111868110,0.14310417,1217.2,1214.9,0.52931946]
[1760111868313,0.14310417,1217.2,1215.0,0.52931946]
[1760111868512,0.14310417,1217.2,1214.6,0.61047909]
[1760111868715,0.14310417,1217.2,1214.7,0.52944201]
[1760111868911,0.14310417,1217.2,1214.8,0.52944201]
[1760111869115,0.14310417,1217.2,1214.9,0.52944201]
[1760111869314,0.14310417,1217.2,1215.0,0.52944201]
[1760111869611,0.14310417,1217.2,1215.1,0.52944201]
[1760111869811,0.14310417,1217.2,1214.6,0.61047909]
[1760111870012,0.14310417,1217.2,1214.7,0.52943896]
[1760111870315,0.14310417,1217.2,1214.6,0.61047909]
[1760111870316,0.14310417,1217.2,1214.8,0.52943896]
[1760111870512,0.14310417,1217.2,1214.9,0.52943896]
[1760111870815,0.14310417,1217.2,1215.0,0.52943896]
[1760111871012,0.14310417,1217.2,1215.1,0.52943896]
[1760111871211,0.14310417,1217.2,1215.2,0.52943896]
[1760111871416,0.14310417,1217.2,1215.3,0.52943896]
[1760111871713,0.14310417,1217.2,1214.8,0.61047909]
[1760111871917,0.14310417,1217.2,1214.9,0.52940375]
[1760111872117,0.14310417,1217.2,1215.0,0.52940375]
[1760111872316,0.14310417,1217.2,1215.1,0.52940375]
[1760111872516,0.14310417,1217.2,1215.2,0.52940375]
[1760111872717,0.14310417,1217.2,1215.3,0.52940375]
[1760111873012,0.14310417,1217.2,1214.8,0.61047909]
[1760111873215,0.14310417,1217.2,1214.9,0.52942457]
[1760111873413,0.14310417,1217.2,1215.0,0.52942457]
[1760111873614,0.14310417,1217.2,1215.1,0.52942457]
[1760111873815,0.14310417,1217.2,1215.2,0.52942457]
[1760111874014,0.14310417,1217.2,1215.3,0.52942457]
[1760111874216,0.14310417,1217.2,1215.4,0.52942457]
[1760111874416,0.14310417,1217.2,1215.5,0.52942457]
[1760111874618,0.14310417,1217.2,1215.6,0.5295041]
[1760111874818,0.14310417,1217.2,1215.0,0.61047909]
[1760111875016,0.14310417,1217.2,1215.1,0.52950389]
[1760111875220,0.14310417,1217.2,1215.2,0.52950389]
[1760111875420,0.14310417,1217.2,1215.3,0.52950389]
[1760111875617,0.14310417,1217.2,1215.4,0.52950389]
[1760111875917,0.14310417,1217.2,1215.5,0.52950389]
[1760111876123,0.14310417,1217.2,1215.0,0.61047909]
[1760111876318,0.14310417,1217.2,1215.1,0.52955125]
[1760111876521,0.14310417,1217.2,1215.2,0.52955125]
[1760111876722,0.14310417,1217.2,1215.3,0.52955125]
[1760111876921,0.14310417,1217.2,1215.4,0.52955125]
[1760111877119,0.14310417,1217.2,1215.5,0.52955125]
[1760111877318,0.14310417,1217.2,1215.0,0.61047909]
[1760111877624,0.14310417,1217.2,1215.1,0.52965489]
[1760111877822,0.14310417,1217.2,1215.2,0.52965489]
[1760111878018,0.14310417,1217.2,1214.6,0.80516912]
[1760111878019,0.14310417,1217.2,1215.3,0.52965489]
[1760111878222,0.14310417,1217.2,1215.4,0.52965489]
[1760111878522,0.14310417,1217.2,1215.5,0.52965489]
[1760111878721,0.14310417,1217.2,1215.6,0.52965489]
[1760111878921,0.14310417,1217.2,1215.7,0.52965489]
[1760111879122,0.14310417,1217.2,1215.8,0.52960163]
[1760111879323,0.14310417,1217.2,1215.9,0.52960163]
[1760111879523,0.14310417,1217.2,1216.0,0.52960163]
[1760111879719,0.14310417,1217.2,1215.6,0.61047909]
[1760111880023,0.14310417,1217.2,1215.7,0.52956939]
[1760111880217,0.14310417,1217.2,1215.8,0.52956939]
[1760111880424,0.14310417,1217.2,1215.9,0.52956939]
[1760111880623,0.14310417,1217.2,1216.0,0.52956939]
[1760111880823,0.14310417,1217.2,1216.1,0.52956939]
[1760111881023,0.14310417,1217.2,1215.6,0.61047909]
[1760111881224,0.14310417,1217.2,1215.7,0.52958069]
[1760111881524,0.14310417,1217.2,1215.3,0.61047909]
[1760111881728,0.14310417,1217.2,1215.4,0.5287915]
[1760111882028,0.14310417,1217.2,1215.5,0.5287915]
[1760111882228,0.14310417,1217.2,1215.6,0.5287915]
[1760111882524,0.14310417,1217.2,1215.7,0.5287915]
[1760111882723,0.14310417,1217.2,1215.3,0.61047909]
[1760111882923,0.14310417,1217.2,1215.4,0.52924503]
[1760111883122,0.14310417,1217.2,1215.5,0.52924503]
[1760111883328,0.14310417,1217.2,1215.6,0.52924503]
[1760111883528,0.14310417,1217.2,1215.3,0.61047909]
[1760111883529,0.14310417,1217.2,1215.2,0.61047909]
[1760111883724,0.14310417,1217.2,1215.3,0.52965965]
[1760111883925,0.14310417,1217.2,1215.4,0.52965965]
[1760111884128,0.14310417,1217.2,1215.5,0.52965965]
[1760111884328,0.14310417,1217.2,1215.6,0.53020604]
[1760111884530,0.14310417,1217.2,1215.1,0.61047909]
[1760111884826,0.14310417,1217.2,1215.2,0.53019907]
[1760111885025,0.14310417,1217.2,1215.3,0.53019907]
[1760111885225,0.14310417,1217.2,1214.8,0.61047909]
[1760111885529,0.14310417,1217.2,1214.9,0.53072988]
[1760111885726,0.14310417,1217.2,1215.0,0.53072988]
[1760111885926,0.14310417,1217.2,1215.1,0.53072988]
[1760111886230,0.14310417,1217.2,1215.2,0.53072988]
[1760111886431,0.14310417,1217.2,1215.3,0.53072988]
[1760111886634,0.14310417,1217.2,1215.4,0.53072988]
[1760111886832,0.14310417,1217.2,1214.8,0.61047909]
[1760111887127,0.14310417,1217.2,1214.9,0.53123177]
[1760111887327,0.14310417,1217.2,1215.0,0.53123177]
[1760111887527,0.14310417,1217.2,1215.1,0.53123177]
[1760111887733,0.14310417,1217.2,1215.2,0.53123177]
[1760111887933,0.14310417,1217.2,1215.3,0.53123177]
[1760111888130,0.14310417,1217.2,1214.7,0.61047909]
[1760111888431,1.1891054,1217.0,1214.8,0.5316776]
[1760111888635,1.1891054,1216.7,1214.4,0.61047909]
[1760111888832,1.1891054,1216.9,1214.5,0.53215243]
[1760111889134,0.14310417,1217.2,1214.6,0.53215243]
[1760111889334,1.1891054,1216.9,1214.0,0.61047909]
[1760111889534,1.1891054,1216.9,1214.1,0.53239402]
[1760111889730,1.1891054,1216.9,1214.2,0.53239402]
[1760111889933,1.1891054,1216.9,1214.3,0.53239402]
[1760111890134,1.1891054,1216.9,1214.4,0.53239402]
[1760111890336,1.1891054,1216.9,1214.5,0.53239402]
[1760111890633,1.1891054,1216.8,1214.6,0.53239402]
[1760111890836,1.1891054,1217.1,1214.7,0.53239402]
[1760111891036,1.33220957,1217.2,1214.8,0.53239402]
[1760111891331,1.1891054,1217.1,1214.9,0.53239402]
[1760111891532,1.1891054,1217.1,1214.3,0.61047909]
[1760111891736,1.33220957,1217.2,1214.4,0.53251886]
[1760111891938,1.1891054,1217.1,1214.5,0.53251886]
[1760111892237,1.1891054,1217.1,1214.6,0.53251886]
[1760111892431,1.33220957,1217.2,1214.7,0.53251886]
[1760111892732,1.33220957,1217.2,1214.8,0.53251886]
[1760111892932,1.33220957,1217.2,1214.9,0.53251886]
[1760111893136,1.33220957,1217.2,1215.0,0.53251886]
[1760111893334,1.33220957,1217.2,1215.1,0.53251886]
[1760111893335,1.1891054,1217.1,1215.1,0.53251886]
[1760111893634,1.1891054,1217.1,1215.2,0.53244426]
[1760111893840,1.1891054,1217.1,1214.7,0.61047909]
[1760111894037,1.1891054,1217.1,1214.8,1.14291988]
[1760111894242,1.33220957,1217.2,1214.9,0.53244079]
[1760111894536,1.33220957,1217.2,1215.0,0.53244079]
[1760111894740,1.33220957,1217.2,1215.1,0.53244079]
[1760111895036,1.33220957,1217.2,1215.2,0.53244079]
[1760111895240,1.33220957,1217.2,1214.7,0.61047909]
[1760111895439,1.33220957,1217.2,1214.8,0.53243413]
[1760111895739,1.33220957,1217.2,1214.9,0.53243413]
[1760111896038,1.33220957,1217.2,1215.0,0.53243413]
[1760111896337,0.14310417,1217.2,1215.1,0.53243413]
[1760111896637,0.14310417,1217.2,1215.2,0.53243413]
[1760111896839,1.33220957,1217.2,1214.6,0.61047909]
[1760111897038,1.33220957,1217.2,1214.7,0.53243335]
[1760111897237,0.14310417,1217.2,1214.8,1.14291244]
[1760111897438,0.14310417,1217.2,1214.9,0.53243335]
[1760111897639,0.14310417,1217.2,1215.0,0.53243335]
[1760111897844,0.14310417,1217.2,1215.1,0.53243335]
[1760111898147,0.14310417,1217.2,1215.2,0.53243335]
[1760111898342,0.14310417,1217.2,1215.3,0.53243335]
[1760111898543,0.14310417,1217.2,1215.4,0.53243335]
[1760111898743,0.14310417,1217.2,1214.9,0.61047909]
[1760111898944,0.14310417,1217.2,1215.0,0.53236442]
[1760111899141,0.14310417,1217.2,1215.1,0.53236442]
[1760111899341,0.14310417,1217.2,1215.2,0.53236442]
[1760111899641,0.14310417,1217.2,1215.3,0.53236442]
[1760111899843,0.14310417,1217.2,1215.4,0.53236442]
[1760111900039,0.14310417,1217.2,1214.9,0.61047909]
[1760111900240,0.14310417,1217.2,1215.0,0.53240456]
[1760111900441,0.14310417,1217.2,1215.1,0.53240456]
[1760111900646,0.14310417,1217.2,1215.2,0.53240456]
[1760111900841,0.14310417,1217.2,1215.3,0.53240456]
[1760111901045,0.14310417,1217.2,1215.4,0.53240456]
[1760111901241,0.14310417,1217.2,1215.5,0.53240456]
[1760111901445,0.14310417,1217.2,1215.6,0.53240456]
[1760111901745,0.14310417,1217.2,1215.7,0.53240456]
[1760111901945,0.14310417,1217.2,1215.1,0.61047909]
[1760111902243,0.14310417,1217.2,1215.2,0.53222474]
[1760111902543,0.14310417,1217.2,1215.3,0.53222474]
[1760111902745,0.14310417,1217.2,1215.4,0.53222474]
[1760111902940,0.14310417,1217.2,1215.5,0.53222474]
[1760111903145,0.14310417,1217.2,1215.6,0.53222474]
[1760111903347,0.14310417,1217.2,1215.7,0.53222474]
[1760111903546,0.14310417,1217.2,1215.8,0.53222474]
[1760111903747,0.14310417,1217.2,1215.9,0.53222474]
[1760111903941,0.14310417,1217.2,1215.1,0.61047909]
[1760111904146,0.14310417,1217.2,1215.5,0.61047909]
[1760111904345,0.14310417,1217.2,1215.6,0.53206459]
[1760111904543,0.14310417,1217.2,1215.7,0.53206459]
[1760111904747,0.14310417,1217.2,1215.8,0.53206459]
[1760111904947,0.14310417,1217.2,1215.9,0.53206459]
[1760111905149,0.14310417,1217.2,1216.0,0.53206459]
[1760111905351,0.14310417,1217.2,1216.1,0.53171736]
[1760111905656,0.14310417,1217.2,1215.4,0.61047909]
[1760111905854,0.14310417,1217.2,1215.5,0.53173695]
[1760111906049,0.14310417,1217.2,1215.6,0.53173695]
[1760111906254,0.14310417,1217.2,1215.7,0.53173695]
[1760111906452,0.14310417,1217.2,1215.8,0.53173695]
[1760111906654,0.14310417,1217.2,1215.9,0.53160518]
[1760111906858,0.14310417,1217.2,1215.5,0.61047909]
[1760111907158,0.14310417,1217.2,1215.6,0.53161774]
[1760111907353,0.14310417,1217.2,1215.7,0.53161774]
[1760111907557,0.14310417,1217.2,1215.8,0.53161774]
[1760111907855,0.14310417,1217.2,1215.9,0.53161774]
[1760111908058,0.14310417,1217.2,1215.4,0.61047909]
[1760111908259,0.14310417,1217.2,1215.5,0.5314267]
[1760111908460,0.14310417,1217.2,1215.6,1.14190579]
[1760111908660,0.14310417,1217.2,1215.7,0.5314267]
[1760111908855,0.14310417,1217.2,1215.8,0.5314267]
[1760111909061,0.14310417,1217.2,1215.9,0.5314267]
[1760111909256,0.14310417,1217.2,1216.0,0.5314267]
[1760111909456,0.14310417,1217.2,1215.6,0.61047909]
[1760111909655,0.14310417,1217.2,1215.7,0.5312169]
[1760111909857,0.14310417,1217.2,1215.8,0.5312169]
[1760111910155,0.14310417,1217.2,1215.9,0.5312169]
[1760111910360,0.14310417,1217.2,1216.0,0.5312169]
[1760111910561,0.14310417,1217.2,1215.5,0.61047909]
[1760111910863,0.14310417,1217.2,1215.6,0.53110834]
[1760111911057,0.14310417,1217.2,1215.7,0.53110834]
[1760111911258,0.14310417,1217.2,1215.8,0.53110834]
[1760111911458,0.14310417,1217.2,1215.9,0.53110834]
[1760111911662,0.14310417,1217.2,1216.0,0.53110834]
[1760111911862,0.14310417,1217.2,1216.1,0.53110834]
[1760111912060,0.14310417,1217.2,1216.2,0.53110834]
[1760111912262,0.14310417,1217.2,1215.7,0.61047909]
[1760111912458,0.14310417,1217.2,1215.8,0.53104035]
[1760111912661,0.14310417,1217.2,1215.9,0.53104035]
[1760111912863,0.14310417,1217.2,1216.0,0.53104035]
[1760111913063,0.14310417,1217.2,1216.1,0.53104035]
[1760111913258,0.14310417,1217.2,1216.2,0.53104035]
[1760111913463,0.14310417,1217.2,1215.7,0.61047909]
[1760111913660,0.14310417,1217.2,1215.8,0.5308773]
[1760111913863,0.14310417,1217.2,1215.9,0.5308773]
[1760111914062,0.14310417,1217.2,1216.0,0.5308773]
[1760111914361,0.14310417,1217.2,1216.1,0.5308773]
[1760111914564,0.14310417,1217.2,1216.2,0.5308773]
[1760111914765,0.14310417,1217.2,1215.7,0.61047909]
[1760111915060,0.14310417,1217.2,1215.8,0.53073977]
[1760111915264,0.14310417,1217.2,1215.9,0.53073977]
[1760111915460,0.14310417,1217.2,1215.7,0.61047909]
[1760111915461,0.14310417,1217.2,1216.0,0.53073977]
[1760111915665,0.14310417,1217.2,1215.6,0.61047909]
[1760111915964,0.14310417,1217.2,1215.7,0.53069349]
[1760111916164,0.14310417,1217.2,1215.8,0.53069349]
[1760111916363,0.14310417,1217.2,1215.9,0.53069349]
[1760111916658,0.14310417,1217.2,1216.0,0.53069349]
[1760111916865,0.14310417,1217.2,1216.1,0.53069349]
[1760111917065,0.14310417,1217.2,1215.6,0.61047909]
[1760111917066,0.14310417,1217.2,1216.2,0.53069349]
[1760111917366,0.14310417,1217.2,1215.5,0.61047909]
[1760111917562,0.14310417,1217.2,1215.6,0.5306356]